bitfinex-derivatives/quotes_SOLF0:USTF0_20241024
["timestamp","ask_amount","ask_price","bid_price","bid_amount"]
[1729777427031,6.1845,176.12,175.97,17.47443232]
[1729777427231,6.1845,176.12,176.0,17.47443232]
[1729777427536,2.8413,176.11,176.04,2.8423]
[1729777427831,2.8409,176.14,176.07,2.8418]
[1729777428034,8.56,176.16,176.03,17.47443232]
[1729777428234,8.56,176.16,176.03,18.57436232]
[1729777428435,8.56,176.16,176.08,2.8415]
[1729777428932,10.7296,176.19,176.08,2.8417]
[1729777429327,5.6772,176.28,176.07,17.47443232]
[1729777429633,32.51293232,176.27,176.1,17.47443232]
[1729777430031,32.51293232,176.27,176.12,2.8409]
[1729777430624,32.51293232,176.27,176.11,1.09993]
[1729777430828,17.47443232,176.23,176.1,3.9414]
[1729777431036,17.47443232,176.23,176.1,2.8414]
[1729777431324,2.8404,176.17,176.1,2.8414]
[1729777431528,2.8404,176.17,176.06,17.47443232]
[1729777431529,17.47443232,176.23,176.06,17.47443232]
[1729777431734,2.8407,176.15,176.08,2.8417]
[1729777432035,2.821108,176.22,176.08,2.8417]
[1729777432229,2.821108,176.22,176.06,18.57443232]
[1729777432536,8.22,176.21,176.06,18.57443232]
[1729777432736,2.8409,176.13,176.06,18.57443232]
[1729777433141,17.47443232,176.2,176.04,9.32]
[1729777433338,17.47443232,176.18,176.04,9.32]
[1729777433836,4.3225,176.17,176.04,9.32]
[1729777434035,4.3225,176.17,176.05,17.47443232]
[1729777434338,4.3225,176.17,176.07,2.8418]
[1729777434639,4.3225,176.17,176.05,18.61066232]
[1729777434842,4.3225,176.17,176.08,2.8417]
[1729777435331,2.8408,176.14,176.05,18.57436232]
[1729777435633,4.3225,176.17,176.05,18.57436232]
[1729777435839,4.3225,176.17,176.04,9.31993]
[1729777435840,2.8413,176.11,176.04,9.31993]
[1729777436137,2.1316,176.16,176.04,8.22]
[1729777436632,2.1316,176.16,176.07,2.8418]
[1729777437231,2.1316,176.16,176.04,8.22]
[1729777437232,2.8408,176.14,176.04,8.22]
[1729777437434,4.3225,176.17,176.04,25.69443232]
[1729777437636,2.1316,176.21,176.11,17.47443232]
[1729777437831,8.22,176.26,176.11,17.47443232]
[1729777438145,8.22,176.26,176.12,4.4138]
[1729777438337,8.22,176.26,176.12,5.51367]
[1729777438538,2.8393,176.23,176.16,2.8403]
[1729777438835,2.8393,176.23,176.12,5.51367]
[1729777438836,2.0542,176.27,176.14,18.57430232]
[1729777439029,2.8391,176.24,176.18,2.84]
[1729777439236,2.8391,176.24,176.14,18.57430232]
[1729777439636,10.2742,176.27,176.14,18.57430232]
[1729777439941,2.8392,176.24,176.14,18.57430232]
[1729777440336,2.8387,176.27,176.21,2.8395]
[1729777440638,8.22,176.31,176.2,17.47443232]
[1729777440844,8.22,176.31,176.21,2.0749]
[1729777441039,2.8383,176.3,176.21,3.17477]
[1729777441633,8.22,176.31,176.21,3.17477]
[1729777441834,2.0576,176.34,176.22,8.22]
[1729777442041,2.0576,176.34,176.22,11.48233]
[1729777442641,2.8382,176.3,176.22,11.48233]
[1729777442839,17.47443232,176.33,176.22,3.26233]
[1729777443041,31.2548,176.51,176.22,2.1624]
[1729777443344,25.69443232,176.4,176.24,17.47443232]
[1729777443544,28.55361752,176.4,176.24,17.47443232]
[1729777443842,28.55361752,176.4,176.25,2.8388]
[1729777444241,8.22,176.39,176.24,25.69443232]
[1729777444444,8.22,176.4,176.3,2.8381]
[1729777445242,65.6084,176.41,176.3,2.8381]
[1729777445243,4.2684,176.41,176.3,17.47443232]
[1729777445436,2.8369,176.39,176.3,17.47443232]
[1729777445737,4.2684,176.41,176.27,17.47443232]
[1729777445943,21.74283232,176.41,176.27,18.60982232]
[1729777446139,21.74283232,176.41,176.24,25.67443232]
[1729777446140,4.2684,176.41,176.24,25.67443232]
[1729777446334,17.47443232,176.37,176.24,26.80982232]
[1729777446643,25.67443232,176.37,176.24,17.47443232]
[1729777446842,25.67443232,176.37,176.23,1.10006]
[1729777447042,25.67443232,176.37,176.22,2.1624]
[1729777447232,2.8384,176.29,176.22,5.0017]
[1729777447641,2.8384,176.29,176.23,2.8393]
[1729777447937,8.2,176.37,176.22,2.1624]
[1729777448439,2.8376,176.34,176.27,2.8385]
[1729777448631,2.8376,176.34,176.23,17.47443232]
[1729777448632,17.47443232,176.39,176.23,17.47443232]
[1729777448834,2.8375,176.35,176.28,2.8385]
[1729777449141,7.86,176.39,176.27,1.10006]
[1729777449535,2.2023,176.43,176.27,25.33443232]
[1729777450043,2.8371,176.37,176.31,2.838]
[1729777450346,2.8371,176.37,176.27,26.43449232]
[1729777450538,2.8369,176.38,176.32,2.8378]
[1729777450743,17.47443232,176.42,176.27,8.96006]
[1729777451137,17.47443232,176.42,176.31,2.8379]
[1729777451442,17.47443232,176.39,176.26,1.13488]
[1729777451645,2.8375,176.35,176.28,2.8383]
[1729777451943,17.47443232,176.39,176.28,2.8383]
[1729777452138,2.8374,176.35,176.29,2.8383]
[1729777452341,2.8374,176.35,176.25,7.86]
[1729777452342,17.47443232,176.39,176.25,7.86]
[1729777452741,17.47443232,176.39,176.25,8.96006]
[1729777452941,2.8374,176.35,176.28,2.8384]
[1729777453142,17.47443232,176.39,176.28,2.8384]
[1729777453546,17.47443232,176.39,176.28,3.93846]
[1729777453737,19.52813232,176.39,176.26,3.93876]
[1729777454046,19.52813232,176.39,176.26,1.10006]
[1729777454238,2.8378,176.33,176.26,1.10006]
[1729777454539,2.0537,176.39,176.25,1.10006]
[1729777454940,17.47443232,176.38,176.23,18.57449232]
[1729777455145,2.2262,176.37,176.23,26.43449232]
[1729777455441,2.8377,176.33,176.23,26.43449232]
[1729777455643,2.2262,176.37,176.23,26.43449232]
[1729777456246,2.8376,176.34,176.23,26.43449232]
[1729777456447,2.2262,176.37,176.23,26.43449232]
[1729777456741,2.2262,176.37,176.29,2.8382]
[1729777456742,2.8375,176.35,176.29,2.8382]
[1729777456937,2.2262,176.37,176.29,2.8382]
[1729777457344,2.2262,176.37,176.32,2.8378]
[1729777457539,2.0537,176.39,176.28,1.10006]
[1729777457737,2.0537,176.39,176.26,18.57449232]
[1729777458249,2.8373,176.36,176.26,18.57449232]
[1729777458546,2.0537,176.39,176.26,18.57449232]
[1729777458739,2.0537,176.39,176.28,2.8383]
[1729777458940,17.47443232,176.36,176.26,1.10006]
[1729777459140,17.47443232,176.36,176.26,2.8388]
[1729777459141,2.8381,176.31,176.26,2.8388]
[1729777459444,19.52813232,176.39,176.24,1.10006]
[1729777459639,19.52813232,176.39,176.24,1.13513]
[1729777459841,2.8376,176.34,176.29,2.8382]
[1729777460146,19.52813232,176.39,176.26,1.1]
[1729777460348,2.838,176.32,176.26,1.1]
[1729777460644,19.52813232,176.39,176.23,17.47443232]
[1729777460645,19.52813232,176.39,176.25,1.1]
[1729777460947,2.838,176.32,176.25,1.1]
[1729777461135,19.52813232,176.39,176.25,1.1]
[1729777461537,2.8379,176.32,176.27,2.8386]
[1729777462143,2.8379,176.32,176.27,2.8385]
[1729777462339,19.52813232,176.39,176.25,1.1]
[1729777462340,2.8377,176.33,176.25,1.1]
[1729777462540,2.8377,176.33,176.26,17.47443232]
[1729777462841,27.04813232,176.39,176.26,17.47443232]
[1729777462842,27.04813232,176.39,176.29,2.8382]
[1729777463042,2.8376,176.34,176.29,2.8382]
[1729777463244,27.04813232,176.39,176.29,2.8382]
[1729777463443,2.8372,176.36,176.32,2.8377]
[1729777463745,2.217,176.42,176.29,17.47443232]
[1729777463940,4.3313,176.42,176.29,18.57443232]
[1729777464145,2.8371,176.37,176.29,18.57443232]
[1729777464345,17.47443232,176.39,176.29,1.1]
[1729777464539,17.47443232,176.39,176.22,2.1624]
[1729777464540,2.8374,176.35,176.27,2.8386]
[1729777464746,2.85456228,176.4,176.25,1.13471]
[1729777464945,17.47443232,176.38,176.25,1.1]
[1729777465240,2.8381,176.31,176.25,1.1]
[1729777465442,7.52,176.37,176.25,1.1]
[1729777465646,2.8379,176.32,176.27,2.8386]
[1729777465843,7.52,176.37,176.23,17.47443232]
[1729777466045,7.52,176.37,176.23,18.57443232]
[1729777466638,4.3313,176.42,176.29,17.47443232]
[1729777466841,4.3313,176.42,176.29,24.99443232]
[1729777467050,4.3313,176.42,176.3,7.52]
[1729777467250,4.3313,176.42,176.3,9.6846]
[1729777467449,17.47443232,176.4,176.25,7.52]
[1729777467639,7.52,176.39,176.23,19.63903232]
[1729777467845,2.8377,176.33,176.24,7.52]
[1729777468046,7.52,176.39,176.26,17.47443232]
[1729777468243,2.8375,176.35,176.29,2.8383]
[1729777468643,2.8375,176.35,176.26,17.47443232]
[1729777468855,7.52,176.41,176.26,17.47443232]
[1729777469450,2.8371,176.37,176.31,2.8379]
[1729777469655,7.52,176.41,176.26,17.47443232]
[1729777470051,7.52,176.41,176.24,7.52]
[1729777470052,24.99443232,176.41,176.24,7.52]
[1729777470852,17.47443232,176.38,176.24,7.52]
[1729777471062,2.838,176.32,176.25,2.8388]
[1729777471356,17.47443232,176.38,176.24,7.52]
[1729777471550,2.838,176.32,176.25,2.8389]
[1729777472055,2.8376,176.34,176.23,5.0038]
[1729777472350,7.52,176.35,176.23,19.63903232]
[1729777472947,2.838,176.32,176.25,2.8388]
[1729777473159,7.52,176.35,176.23,2.1646]
[1729777473656,7.52,176.35,176.23,3.26466]
[1729777473857,7.52,176.35,176.22,9.6824]
[1729777473858,2.2115,176.34,176.22,10.78246]
[1729777474059,2.2115,176.34,176.22,9.6824]
[1729777474249,4.4043,176.33,176.22,2.1624]
[1729777475655,2.8386,176.28,176.22,2.1624]
[1729777475849,2.8386,176.28,176.22,5.0017]
[1729777476049,2.8384,176.29,176.22,2.1624]
[1729777476253,2.8384,176.29,176.16,2.0399]
[1729777476254,7.52,176.29,176.18,3.93971]
[1729777476453,7.52,176.29,176.16,1.09971]
[1729777476759,7.52,176.29,176.11,4.4056]
[1729777476760,17.47443232,176.24,176.11,4.4056]
[1729777476950,13.7177,176.23,176.11,2.1921]
[1729777477554,13.7177,176.23,176.08,2.1816]
[1729777477750,2.84,176.19,176.08,2.1816]
[1729777477955,6.1977,176.23,176.12,2.841]
[1729777478154,7.52,176.22,176.12,2.841]
[1729777478556,7.52,176.22,176.11,2.8411]
[1729777478756,7.52,176.22,176.08,19.65603232]
[1729777478965,2.8401,176.19,176.08,19.65603232]
[1729777479155,7.52,176.22,176.1,2.8412]
[1729777479351,7.52,176.22,176.07,21.66023232]
[1729777480759,2.8404,176.17,176.11,2.8412]
[1729777480955,7.52,176.22,176.07,21.66023232]
[1729777481458,17.47443232,176.21,176.07,4.1858]
[1729777481957,2.8404,176.17,176.11,2.8411]
[1729777482163,7.52,176.16,176.06,3.25373]
[1729777482357,7.52,176.16,176.06,2.1538]
[1729777482561,17.47443232,176.12,176.0,1.13649]
[1729777482862,17.47443232,176.12,175.99,5.37825]
[1729777483256,17.47443232,176.12,175.99,3.27665]
[1729777483461,6.5786,176.11,175.98,2.2071]
[1729777483665,7.52,176.1,175.98,2.2071]
[1729777483865,7.52,176.1,175.98,3.30713]
[1729777484163,7.52,176.1,175.98,3.34391]
[1729777484558,2.8423,176.05,176.0,2.8429]
[1729777485165,2.8425,176.04,175.99,2.8431]
[1729777485762,7.52,176.1,175.98,2.2071]
[1729777485965,7.52,176.1,175.81,61.34]
[1729777485966,17.47443232,176.05,175.81,61.34]
[1729777486157,17.47443232,176.03,175.89,2.223]
[1729777486356,2.8437,175.96,175.91,2.8444]
[1729777486662,7.52,176.02,175.91,2.8444]
[1729777487061,2.1292,176.01,175.91,2.8444]
[1729777487665,2.8436,175.97,175.91,2.8444]
[1729777488265,6.5392,176.01,175.89,2.223]
[1729777488459,17.47443232,176.0,175.89,2.223]
[1729777488859,17.47443232,176.0,175.87,2.2178]
[1729777489466,2.8442,175.93,175.87,2.2178]
[1729777489666,17.47443232,175.96,175.87,2.2178]
[1729777489667,24.99443232,175.96,175.87,2.2178]
[1729777490266,2.8441,175.94,175.88,2.8449]
[1729777490765,17.47443232,175.99,175.87,2.2178]
[1729777490970,6.5392,176.01,175.87,2.2178]
[1729777490971,7.54,175.98,175.87,2.2178]
[1729777491369,2.844,175.94,175.88,2.8448]
[1729777491565,7.54,175.98,175.84,1.09996]
[1729777491566,17.47443232,175.96,175.84,1.09996]
[1729777491766,17.47443232,175.96,175.86,2.8451]
[1729777491966,17.47443232,175.93,175.78,1.13772]
[1729777492168,7.24,175.92,175.79,2.174]
[1729777492368,9.3006,175.92,175.79,2.174]
[1729777492568,11.5164,175.92,175.79,2.174]
[1729777492978,2.8449,175.88,175.79,2.174]
[1729777493377,2.8449,175.88,175.83,2.8456]
[1729777493769,17.47443232,175.9,175.77,2.2613]
[1729777493963,17.47443232,175.9,175.76,17.47443232]
[1729777494271,17.47443232,175.87,175.73,2.1889]
[1729777494479,7.24,175.86,175.74,2.8471]
[1729777494672,7.24,175.86,175.73,2.1889]
[1729777494673,17.47443232,175.84,175.73,2.1889]
[1729777495176,2.8462,175.81,175.76,2.8468]
[1729777495373,7.24,175.86,175.73,2.1889]
[1729777495871,17.47443232,175.87,175.73,2.1889]
[1729777496467,7.24,175.86,175.73,2.1889]
[1729777496870,2.8454,175.85,175.8,2.8461]
[1729777497066,24.71443232,175.87,175.73,2.1889]
[1729777497274,78.87443232,175.9,175.73,2.1889]
[1729777497476,4.2764,175.92,175.75,17.47443232]
[1729777497782,11.5164,175.92,175.76,7.24]
[1729777497981,2.8449,175.89,175.86,2.8452]
[1729777498274,11.5164,175.92,175.76,8.3781]
[1729777498775,34.55443232,176.18,175.79,17.47443232]
[1729777499071,17.47443232,175.96,175.8,2.2094]
[1729777499279,2.8446,175.91,175.8,2.2094]
[1729777499479,7.24,175.95,175.8,2.2094]
[1729777499773,7.24,175.95,175.81,2.2477]
[1729777499971,2.8443,175.92,175.88,2.8448]
[1729777500168,2.8443,175.92,175.82,7.24]
[1729777500169,17.47443232,175.96,175.82,26.89563232]
[1729777500375,17.47443232,175.96,175.84,1.1381]
[1729777500571,7.24,175.97,175.83,17.47443232]
[1729777500774,7.24,175.97,175.83,18.61253232]
[1729777501273,8.24,176.03,175.86,17.47443232]
[1729777501469,7.24,176.03,175.89,17.47443232]
[1729777501675,17.47443232,175.96,175.84,7.24]
[1729777502173,2.8442,175.93,175.88,2.8448]
[1729777502372,7.24,175.97,175.84,7.24]
[1729777502976,17.47443232,176.02,175.86,17.47443232]
[1729777503170,17.47443232,176.02,175.84,7.24]
[1729777503171,9.4931,176.04,175.89,17.47443232]
[1729777503368,2.8432,175.99,175.9,2.068]
[1729777503673,9.4931,176.04,175.9,9.308]
[1729777503867,9.4931,176.04,175.91,2.1422]
[1729777504077,2.8428,176.01,175.97,2.8434]
[1729777504273,17.47443232,176.08,175.92,19.64573232]
[1729777504582,56.698,176.51,176.02,2.8425]
[1729777504583,2.842,176.07,176.02,2.8425]
[1729777504773,9.317,176.1,175.97,7.24]
[1729777504973,17.47443232,176.08,175.95,7.24]
[1729777505279,17.47443232,176.05,175.92,2.1713]
[1729777505478,17.47443232,176.05,175.92,9.4113]
[1729777505675,2.8432,175.99,175.92,9.4113]
[1729777505872,24.71443232,176.05,175.92,9.4113]
[1729777506478,2.8432,175.99,175.92,9.4113]
[1729777506878,2.8432,175.99,175.94,2.8438]
[1729777507076,2.8435,175.97,175.92,2.1713]
[1729777507274,7.24,175.98,175.83,17.47443232]
[1729777507477,2.8446,175.9,175.83,4.3466]
[1729777507775,17.47443232,175.93,175.83,4.3466]
[1729777507981,17.47443232,175.93,175.83,7.1923]
[1729777508175,17.47443232,175.93,175.83,4.3466]
[1729777508479,17.47443232,175.9,175.81,2.8459]
[1729777508784,2.8454,175.86,175.79,7.24]
[1729777509083,7.24,175.91,175.78,5.0914]
[1729777509084,2.8457,175.84,175.78,5.0914]
[1729777509282,17.47443232,175.89,175.78,5.0914]
[1729777509577,17.47443232,175.89,175.78,2.2449]
[1729777509773,2.8449,175.88,175.82,2.8458]
[1729777509972,2.8449,175.88,175.78,2.2449]
[1729777509973,2.1694,175.9,175.78,2.2449]
[1729777510177,2.1694,175.9,175.78,3.3448]
[1729777510973,2.8456,175.85,175.79,2.8463]
[1729777511186,17.47443232,175.89,175.78,2.2449]
[1729777511478,2.8447,175.9,175.78,2.2449]
[1729777511778,7.24,175.91,175.78,3.34486]
[1729777511978,2.8448,175.89,175.81,2.8459]
[1729777512281,17.47443232,175.88,175.78,2.2449]
[1729777512474,17.47443232,175.88,175.77,2.223]
[1729777512679,2.8458,175.83,175.78,2.8465]
[1729777512875,4.4774,175.87,175.77,2.223]
[1729777513183,2.8454,175.85,175.8,2.8461]
[1729777513376,4.4774,175.87,175.77,2.223]
[1729777513679,24.71443232,175.91,175.78,7.24]
[1729777513879,17.47443232,175.91,175.78,7.24]
[1729777514381,17.47443232,175.91,175.78,8.34003]
[1729777514969,2.845,175.88,175.83,2.8456]
[1729777515182,17.47443232,175.94,175.79,18.57446232]
[1729777515376,7.24,175.92,175.79,17.47443232]
[1729777515581,2.8442,175.93,175.89,2.8447]
[1729777515777,11.7174,175.96,175.82,17.47443232]
[1729777515981,11.7174,175.96,175.83,2.2128]
[1729777516280,11.7174,175.96,175.83,10.55283]
[1729777516785,7.24,176.0,175.85,17.47443232]
[1729777517079,7.24,176.0,175.86,2.1386]
[1729777517280,2.8437,175.96,175.92,2.8442]
[1729777517978,7.24,176.0,175.86,2.1386]
[1729777518180,17.47443232,175.98,175.86,2.1386]
[1729777518380,17.47443232,175.94,175.83,4.278]
[1729777518789,17.47443232,175.94,175.86,2.8451]
[1729777518790,2.8447,175.9,175.86,2.8451]
[1729777518982,2.8447,175.9,175.83,4.278]
[1729777519281,17.47443232,175.94,175.83,4.278]
[1729777519483,17.47443232,175.92,175.79,2.07]
[1729777519678,2.8457,175.84,175.81,2.846]
[1729777519877,2.8457,175.84,175.76,8.37778]
[1729777519878,7.24,175.88,175.76,7.24]
[1729777520383,7.24,175.88,175.73,2.07]
[1729777520384,17.47443232,175.85,175.73,2.07]
[1729777520578,17.47443232,175.85,175.72,2.2664]
[1729777520579,17.47443232,175.82,175.72,2.2664]
[1729777520774,17.47443232,175.82,175.74,2.8471]
[1729777520775,2.8466,175.78,175.74,2.8471]
[1729777520977,7.24,175.81,175.72,2.2664]
[1729777521386,7.24,175.81,175.7,2.0482]
[1729777521982,7.24,175.81,175.7,19.52263232]
[1729777522183,7.16,175.84,175.73,17.47443232]
[1729777522384,2.8458,175.83,175.73,17.47443232]
[1729777522586,7.16,175.86,175.73,17.47443232]
[1729777522791,7.16,175.86,175.73,25.77279232]
[1729777522977,7.16,175.86,175.77,2.8466]
[1729777522978,2.8459,175.83,175.77,2.8466]
[1729777523177,24.63443232,175.86,175.77,2.8466]
[1729777523482,2.2419,175.91,175.73,8.29836]
[1729777523483,2.8455,175.85,175.8,2.8461]
[1729777523888,7.16,175.87,175.8,2.8461]
[1729777524287,2.8454,175.85,175.8,2.8461]
[1729777524592,2.2419,175.91,175.76,17.47443232]
[1729777524785,2.845,175.88,175.76,20.64510232]
[1729777524977,7.16,175.9,175.76,20.64510232]
[1729777524978,7.16,175.9,175.8,2.8462]
[1729777525180,7.16,175.9,175.76,2.0708]
[1729777525377,17.47443232,175.85,175.76,2.0708]
[1729777525784,17.47443232,175.82,175.72,1.13833]
[1729777526096,17.47443232,175.82,175.71,7.16]
[1729777526386,2.8462,175.81,175.7,2.0482]
[1729777526593,17.47443232,175.82,175.7,2.0482]
[1729777526779,17.47443232,175.82,175.7,3.14798]
[1729777526986,17.47443232,175.79,175.7,2.0482]
[1729777527190,17.47443232,175.79,175.73,2.8472]
[1729777527491,2.8468,175.77,175.73,2.8472]
[1729777527989,24.63443232,175.76,175.5,2.55658955]
[1729777528192,17.47443232,175.73,175.58,6.3818]
[1729777528383,28.45621582,175.7,175.58,6.3818]
[1729777528582,28.45621582,175.7,175.65,2.8486]
[1729777528583,2.8482,175.69,175.65,2.8486]
[1729777528790,7.16,175.7,175.6,1.09965]
[1729777528791,35.61621582,175.7,175.6,1.09965]
[1729777529087,35.61621582,175.7,175.62,2.849]
[1729777529088,2.8484,175.67,175.62,2.849]
[1729777529289,2.8484,175.67,175.58,4.2438]
[1729777529785,2.8484,175.67,175.58,5.34333]
[1729777530187,7.16,175.68,175.58,5.34333]
[1729777530386,7.16,175.68,175.63,2.8488]
[1729777530895,28.45621582,175.7,175.59,1.09953]
[1729777530896,7.16,175.69,175.59,1.09953]
[1729777532092,2.8484,175.67,175.59,1.09953]
[1729777532294,7.16,175.69,175.59,1.09953]
[1729777532696,2.8482,175.68,175.59,1.09953]
[1729777532886,7.16,175.69,175.59,1.09953]
[1729777533091,28.45621582,175.7,175.59,1.09953]
[1729777533400,35.61621582,175.7,175.59,1.09953]
[1729777533786,2.8481,175.69,175.65,2.8486]
[1729777534297,2.2321,175.71,175.67,2.8482]
[1729777534998,2.2321,175.71,175.62,1.09953]
[1729777535199,28.45621582,175.79,175.63,35.61621582]
[1729777535392,28.45621582,175.79,175.63,37.87521582]
[1729777535592,28.45621582,175.79,175.63,38.97474582]
[1729777535593,2.8469,175.76,175.63,38.97474582]
[1729777535997,4.1401,175.8,175.66,28.45621582]
[1729777536206,4.1401,175.8,175.67,2.0991]
[1729777536498,28.45621582,175.79,175.67,2.0991]
[1729777536902,28.45621582,175.79,175.7,2.8477]
[1729777537100,28.45621582,175.79,175.67,2.0991]
[1729777537101,2.8472,175.74,175.67,2.0991]
[1729777537592,4.1401,175.8,175.67,2.0991]
[1729777537797,4.1401,175.8,175.68,2.1842]
[1729777537798,6.9864,175.8,175.68,2.1842]
[1729777537994,2.2068,175.83,175.78,2.8465]
[1729777538307,7.16,175.82,175.71,1.13879]
[1729777538502,7.16,175.82,175.74,2.8471]
[1729777538896,2.8466,175.78,175.74,2.8471]
[1729777539102,7.16,175.82,175.69,7.16]
[1729777539298,2.847,175.76,175.72,2.8475]
[1729777539509,28.45621582,175.8,175.68,2.1842]
[1729777540006,2.8471,175.75,175.71,2.8477]
[1729777540203,28.45621582,175.8,175.71,2.8477]
[1729777540404,28.45621582,175.77,175.68,2.1842]
[1729777541203,28.45621582,175.8,175.68,2.1842]
[1729777541506,2.8473,175.74,175.69,2.8479]
[1729777541700,28.45621582,175.8,175.65,1.09984]
[1729777541701,35.61621582,175.76,175.65,1.09984]
[1729777541899,35.61621582,175.76,175.63,9.419]
[1729777541900,28.45621582,175.73,175.63,9.419]
[1729777542203,4.3595,175.75,175.69,2.8479]
[1729777542399,4.3595,175.75,175.63,9.419]
[1729777542602,2.8478,175.71,175.63,9.419]
[1729777543104,28.45621582,175.73,175.63,9.419]
[1729777543305,28.45621582,175.7,175.59,1.09974]
[1729777543509,28.45621582,175.67,175.57,1.13891]
[1729777543699,2.8488,175.65,175.55,14.77831]
[1729777544005,28.45621582,175.67,175.55,13.6394]
[1729777544307,28.45621582,175.67,175.55,6.4794]
[1729777544506,28.45621582,175.63,175.52,1.13891]
[1729777544698,7.16,175.63,175.49,72.02431]
[1729777544904,7.16,175.63,175.51,28.45621582]
[1729777545205,32.74871582,175.66,175.51,28.45621582]
[1729777545206,4.2925,175.66,175.51,28.45621582]
[1729777545405,2.85,175.57,175.53,2.8506]
[1729777545712,35.61621582,175.59,175.48,1.13921]
[1729777546004,2.8499,175.58,175.48,1.13921]
[1729777546601,2.8499,175.58,175.51,2.8509]
[1729777546802,2.8498,175.58,175.48,1.13921]
[1729777547014,28.45621582,175.65,175.48,1.13921]
[1729777547205,7.16,175.64,175.58,2.8497]
[1729777547406,2.8493,175.62,175.58,2.8497]
[1729777547904,28.45621582,175.65,175.5,28.45621582]
[1729777548108,7.1411,175.66,175.51,7.16]
[1729777548416,28.45621582,175.72,175.56,28.45621582]
[1729777548602,28.45621582,175.72,175.57,11.578]
[1729777548603,10.0078,175.71,175.57,11.578]
[1729777548801,7.16,175.73,175.59,28.45621582]
[1729777549007,7.16,175.73,175.59,29.55599582]
[1729777549200,28.45621582,175.68,175.57,4.418]
[1729777549506,7.16,175.67,175.57,4.418]
[1729777549907,28.45621582,175.68,175.57,4.418]
[1729777550209,7.16,175.7,175.59,28.45621582]
[1729777550511,2.8477,175.71,175.67,2.8482]
[1729777551006,10.0076,175.72,175.62,3.94862]
[1729777551200,10.0076,175.72,175.62,1.09962]
[1729777551803,7.16,175.72,175.62,1.09962]
[1729777552009,28.45621582,175.71,175.59,1.09962]
[1729777552210,2.8483,175.68,175.64,2.8487]
[1729777552410,2.8483,175.68,175.57,11.518]
[1729777552411,28.45621582,175.71,175.58,0.19992]
[1729777552814,2.848,175.69,175.65,2.8485]
[1729777553012,7.16,175.72,175.59,28.45621582]
[1729777553215,7.16,175.72,175.62,28.45621582]
[1729777553411,28.45621582,175.81,175.65,28.45621582]
[1729777553613,7.1,175.8,175.65,28.65613582]
[1729777553811,7.1,175.8,175.65,0.19992]
[1729777553812,28.45621582,175.78,175.65,0.19992]
[1729777554114,2.8477,175.72,175.68,2.8482]
[1729777554312,2.8477,175.72,175.63,9.47222]
[1729777554712,28.45621582,175.75,175.63,9.47222]
[1729777554906,7.1,175.74,175.63,9.47222]
[1729777555710,7.1,175.74,175.69,2.8479]
[1729777555909,2.8475,175.73,175.69,2.8479]
[1729777556310,2.8475,175.72,175.69,2.8479]
[1729777556506,7.1,175.74,175.69,2.8479]
[1729777557117,2.8475,175.73,175.69,2.8479]
[1729777557520,35.55621582,175.74,175.64,1.13853]
[1729777557708,28.45621582,175.7,175.59,1.13853]
[1729777557906,28.45621582,175.7,175.57,4.3895]
[1729777557907,28.45621582,175.7,175.58,1.09921]
[1729777558125,2.8486,175.66,175.62,2.849]
[1729777558422,2.8486,175.66,175.57,4.3895]
[1729777558717,28.45621582,175.7,175.62,2.849]
[1729777558916,28.45621582,175.64,175.45,5.7036]
[1729777559122,7.1,175.63,175.49,4.3895]
[1729777559420,2.8497,175.59,175.54,2.8504]
[1729777559716,28.45621582,175.61,175.49,4.3895]
[1729777560121,28.45621582,175.61,175.53,2.8505]